bitfinex-derivatives/quotes_BTCF0:USTF0_20251217
["timestamp","ask_amount","ask_price","bid_price","bid_amount"]
[1765985335266,0.37014,89918.0,89904.0,0.32687295]
[1765985335566,0.3608,89909.0,89904.0,0.32687295]
[1765985335970,0.3608,89909.0,89904.0,0.35524499]
[1765985336361,0.3608,89909.0,89905.0,0.63408]
[1765985336566,0.00934,89918.0,89908.0,0.3608]
[1765985336772,0.0111243,89922.0,89908.0,0.3608]
[1765985337074,0.3608,89927.0,89908.0,0.3608]
[1765985337463,0.0111243,89922.0,89908.0,0.3608]
[1765985337664,0.3608,89909.0,89908.0,0.4091852]
[1765985337863,0.3608,89909.0,89904.0,0.32987295]
[1765985337864,0.3608,89909.0,89904.0,0.32687295]
[1765985338067,0.3608,89909.0,89904.0,0.32887295]
[1765985338465,0.07937056,89918.0,89905.0,0.3719264]
[1765985338669,0.07937056,89918.0,89908.0,0.001]
[1765985338871,0.07937056,89918.0,89908.0,0.32787295]
[1765985339367,0.07937056,89917.0,89908.0,0.32687295]
[1765985339572,0.07937056,89919.0,89908.0,0.32687295]
[1765985339769,0.07937056,89919.0,89914.0,0.0111252]
[1765985339975,0.07937056,89920.0,89908.0,0.32687295]
[1765985340164,6e-08,89918.0,89913.0,0.3608]
[1765985340366,0.3608,89931.0,89918.0,0.0111247]
[1765985340567,0.3608,89931.0,89921.0,0.3608]
[1765985340870,0.3608,89931.0,89921.0,0.3719243]
[1765985341077,0.09885749,89937.0,89930.0,0.3608]
[1765985341577,0.01334607,89938.0,89930.0,0.3608]
[1765985341976,0.35772,89936.0,89925.0,0.00016686]
[1765985342179,0.3608,89929.0,89925.0,6e-08]
[1765985342368,1.1870138,89926.0,89925.0,6e-08]
[1765985342569,0.35772,89936.0,89925.0,6e-08]
[1765985342776,0.10108126,89938.0,89935.0,0.0111226]
[1765985342777,3.77e-06,89938.0,89935.0,0.0111226]
[1765985342966,4e-08,89948.0,89937.0,0.3608]
[1765985343276,3e-08,89967.0,89950.0,0.0111207]
[1765985343577,0.00016616,89966.0,89960.0,0.3608]
[1765985343777,0.3608,89965.0,89948.0,0.00016676]
[1765985344077,0.3608,89965.0,89947.0,6e-08]
[1765985344382,0.00016616,89966.0,89956.0,0.3608]
[1765985344677,0.3608,89976.0,89956.0,0.3608]
[1765985344864,0.00222278,89978.0,89966.0,0.68767295]
[1765985345068,0.00222278,89978.0,89974.0,0.3608]
[1765985345269,8e-08,89978.0,89974.0,0.3608]
[1765985346080,8e-08,89978.0,89974.0,0.3719178]
[1765985346280,8e-08,89978.0,89974.0,0.3608]
[1765985347171,8e-08,89978.0,89967.0,0.00016676]
[1765985347366,0.3608,89968.0,89928.0,0.3608]
[1765985347570,0.0111197,89960.0,89941.0,0.3608]
[1765985347772,0.3608,89956.0,89941.0,0.3608]
[1765985348073,0.3608,89956.0,89928.0,0.3608]
[1765985348074,0.3608,89945.0,89930.0,0.32687295]
[1765985348269,0.3608,89945.0,89931.0,0.0111231]
[1765985348471,0.3608,89945.0,89930.0,0.32687295]
[1765985348684,0.3608,89945.0,89937.0,0.003]
[1765985348892,0.3608,89945.0,89929.0,0.00016676]
[1765985349183,0.3608,89942.0,89929.0,0.00016676]
[1765985349476,0.3608,89932.0,89930.0,0.001]
[1765985349681,0.3608,89942.0,89931.0,0.3608]
[1765985350072,0.00016676,89946.0,89932.0,0.011123]
[1765985350281,8e-08,89978.0,89945.0,0.3608]
[1765985350487,0.3608,89973.0,89959.0,0.3608]
[1765985350778,0.01111758,89978.0,89959.0,0.3608]
[1765985350779,8e-08,89978.0,89959.0,0.3608]
[1765985350982,8e-08,89978.0,89920.0,0.33799735]
[1765985350983,0.3608,89960.0,89942.0,0.45612]
[1765985351184,0.3608,89974.0,89950.0,0.3608]
[1765985351375,0.01128646,89960.0,89948.0,0.3608]
[1765985351686,0.00016676,89960.0,89948.0,0.3608]
[1765985351881,0.3608,89956.0,89945.0,0.3608]
[1765985352675,0.0111205,89953.0,89942.0,0.00016676]
[1765985352976,0.3608,89956.0,89942.0,0.00016676]
[1765985353171,0.0111206,89952.0,89942.0,0.36096676]
[1765985353683,0.3608,89956.0,89942.0,0.36096676]
[1765985354187,0.32803971,89960.0,89942.0,0.37208856]
[1765985354188,0.00016676,89960.0,89942.0,0.37208856]
[1765985354484,0.3608,89949.0,89942.0,0.36096676]
[1765985354682,0.001,89956.0,89942.0,0.36096676]
[1765985354882,0.001,89956.0,89946.0,0.0111213]
[1765985355078,0.001,89956.0,89947.0,0.0111211]
[1765985355384,0.00016676,89960.0,89946.0,0.0111212]
[1765985355577,0.00016676,89960.0,89950.0,0.3608]
[1765985356176,0.3608,89957.0,89942.0,0.36096676]
[1765985356395,0.0111201,89956.0,89942.0,0.36096676]
[1765985356879,0.3608,89957.0,89942.0,0.36096676]
[1765985357086,0.3608,89957.0,89942.0,0.37208846]
[1765985357284,0.3608,89957.0,89943.0,0.0111216]
[1765985357482,0.3608,89957.0,89942.0,0.36096676]
[1765985357483,0.0111204,89954.0,89942.0,0.36096676]
[1765985357791,0.0111207,89951.0,89942.0,0.36096676]
[1765985358088,0.0111212,89947.0,89942.0,0.00016676]
[1765985358275,0.3608,89949.0,89932.0,0.3608]
[1765985358482,0.3608,89949.0,89940.0,0.011122]
[1765985358676,0.32402,89952.0,89940.0,0.011122]
[1765985358677,0.32402,89952.0,89948.0,0.3608]
[1765985358882,6e-08,89960.0,89949.0,0.0111209]
[1765985359091,6e-08,89960.0,89959.0,0.3608]
[1765985360289,0.0111185,89969.0,89956.0,0.3608]
[1765985360290,6e-08,89969.0,89956.0,0.3608]
[1765985360483,8e-08,89978.0,89975.0,0.0111176]
[1765985360684,8e-08,89978.0,89977.0,0.3608]
[1765985362394,0.00016676,89986.0,89977.0,0.3608]
[1765985362395,4e-08,89986.0,89977.0,0.3608]
[1765985362584,4e-08,89986.0,89980.0,0.011117]
[1765985362892,4e-08,89986.0,89985.0,0.3608]
[1765985363089,4e-08,89986.0,89977.0,0.3608]
[1765985363494,0.3608,89978.0,89973.0,0.00016676]
[1765985363788,0.3608,89978.0,89946.0,0.3608]
[1765985363789,0.7216,89978.0,89946.0,0.3608]
[1765985363990,0.3608,89954.0,89946.0,0.3608]
[1765985364189,0.3608,89954.0,89938.0,0.3608]
[1765985364391,0.3608,89945.0,89931.0,0.0111231]
[1765985364593,0.3608,89967.0,89944.0,0.0111215]
[1765985364797,6e-08,89947.0,89942.0,0.3608]
[1765985364999,6e-08,89947.0,89943.0,0.0111217]
[1765985365298,6e-08,89947.0,89942.0,0.3608]
[1765985365794,0.3608,89944.0,89936.0,0.3608]
[1765985365986,6e-08,89947.0,89936.0,0.3608]
[1765985366493,0.3608,89965.0,89947.0,0.34987]
[1765985366685,0.3608,89965.0,89956.0,0.3608]
[1765985366882,0.3608,89957.0,89920.0,0.34141]
[1765985367086,0.3608,89934.0,89913.0,0.3608]
[1765985367282,0.3608,89934.0,89904.0,0.32124826]
[1765985367283,0.3608,89943.0,89930.0,0.3608]
[1765985367486,0.3608,89935.0,89921.0,0.3608]
[1765985367696,0.3608,89943.0,89929.0,0.3608]
[1765985368395,0.0111208,89951.0,89938.0,0.3608]
[1765985368782,0.3608,89947.0,89936.0,0.00016676]
[1765985368983,0.3608,89947.0,89937.0,0.3608]
[1765985369294,0.3608,89956.0,89942.0,0.0111218]
[1765985369495,0.3608,89956.0,89947.0,0.3608]
[1765985369696,0.3608,89956.0,89938.0,0.0111222]
[1765985369996,0.3608,89956.0,89941.0,0.0111219]
[1765985370196,0.3608,89956.0,89937.0,0.3719223]
[1765985370394,0.3608,89956.0,89940.0,0.011122]
[1765985370595,0.3608,89956.0,89937.0,0.3608]
[1765985371093,0.4754,89958.0,89946.0,0.3608]
[1765985371293,0.3608,89966.0,89951.0,0.0111206]
[1765985371494,0.38876059,89966.0,89957.0,0.0111199]
[1765985371694,0.68767295,89970.0,89960.0,0.0111195]
[1765985371695,0.3608,89970.0,89960.0,0.0111195]
[1765985371899,0.3608,89970.0,89964.0,0.3608]
[1765985372092,0.70924,89973.0,89964.0,0.732719]
[1765985372296,0.70924,89973.0,89940.0,0.32687295]
[1765985372297,0.3608,89968.0,89940.0,0.338]
[1765985372599,0.3608,89968.0,89941.0,0.03106719]
[1765985372600,0.70924,89967.0,89941.0,0.03106719]
[1765985372794,0.70924,89967.0,89949.0,0.3608]
[1765985373001,0.3608,89959.0,89954.0,0.0111202]
[1765985373190,0.3608,89959.0,89946.0,0.001]
[1765985373391,5e-08,89959.0,89949.0,0.3608]
[1765985373591,0.3608,89963.0,89950.0,0.03113]
[1765985373791,6e-08,89965.0,89964.0,0.0111191]
[1765985374198,6e-08,89965.0,89958.0,0.3608]
[1765985374501,6e-08,89965.0,89962.0,0.0111192]
[1765985374694,0.70924,89970.0,89967.0,0.0111186]
[1765985374695,0.05544986,89970.0,89967.0,0.0111186]
[1765985374996,0.01106402,89980.0,89958.0,0.3608]
[1765985374997,0.7092,89979.0,89968.0,0.39192405]
[1765985375188,0.7092,89979.0,89969.0,0.04224245]
[1765985375389,0.7092,89979.0,89974.0,0.0111178]
[1765985375592,0.0848003,89979.0,89976.0,0.3608]
[1765985376103,0.02843731,89985.0,89977.0,0.03119503]
[1765985376295,0.05390892,89988.0,89984.0,0.3608]
[1765985376688,0.001,89979.0,89976.0,0.3608]
[1765985376894,0.001,89979.0,89977.0,0.03120238]
[1765985377095,0.001,89979.0,89978.0,0.03120238]
[1765985377300,0.3608,89986.0,89978.0,0.03120238]
[1765985377504,0.0111165,89985.0,89979.0,0.03120238]
[1765985377697,0.0111165,89985.0,89970.0,0.0111183]
[1765985377901,0.05390892,89988.0,89977.0,0.7216]
[1765985378103,0.3719142,90004.0,89988.0,0.0111161]
[1765985378305,0.0111144,90002.0,89995.0,0.3608]
[1765985378497,0.73713983,89997.0,89995.0,0.3608]
[1765985379004,0.3719151,89996.0,89987.0,0.00016676]
[1765985379398,0.3608,89988.0,89987.0,6e-08]
[1765985379804,0.0111161,89989.0,89987.0,6e-08]
[1765985379998,0.3608,89988.0,89987.0,6e-08]
[1765985380305,0.3608,89988.0,89968.0,0.32557]
[1765985380306,0.3608,89988.0,89969.0,0.02812846]
[1765985380605,0.3618,89988.0,89974.0,0.3608]
[1765985381006,0.3608,89998.0,89974.0,0.3608]
[1765985381200,0.001,89988.0,89977.0,0.00016676]
[1765985382200,0.3608,90010.0,89996.0,1.14137]
[1765985382399,0.3608,90010.0,89997.0,0.3608]
[1765985383200,0.68723365,90010.0,89997.0,0.3608]
[1765985383399,0.3608,90010.0,89997.0,0.3608]
[1765985383606,0.3608,89998.0,89985.0,0.34857]
[1765985384004,0.3608,89998.0,89970.0,0.32643365]
[1765985384005,0.3608,89986.0,89970.0,0.02812846]
[1765985384205,0.3608,89986.0,89971.0,0.02812846]
[1765985384399,0.3608,89978.0,89977.0,6e-08]
[1765985384599,0.3608,89978.0,89968.0,2e-08]
[1765985384807,0.3608,89970.0,89957.0,0.3608]
[1765985385508,0.0111188,89966.0,89957.0,0.3608]
[1765985385813,0.37208477,89970.0,89957.0,0.3608]
[1765985386007,0.0111187,89968.0,89957.0,0.3608]
[1765985386210,0.0111187,89968.0,89965.0,1e-08]
[1765985386425,0.0111187,89968.0,89950.0,0.32643365]
[1765985386426,0.0111205,89953.0,89942.0,8.155e-05]
[1765985386608,0.3608,89959.0,89942.0,8.155e-05]
[1765985386808,0.0111207,89951.0,89942.0,8.155e-05]
[1765985387010,0.3608,89950.0,89942.0,8.155e-05]
[1765985387504,0.0111204,89954.0,89942.0,8.155e-05]
[1765985387810,0.00016647,89970.0,89953.0,0.3608]
[1765985388009,0.0111194,89961.0,89950.0,0.3608]
[1765985388210,0.0111196,89961.0,89950.0,0.3608]
[1765985388513,0.0111193,89963.0,89950.0,0.3608]
[1765985388807,0.3608,89969.0,89950.0,0.3608]
[1765985389012,0.3608,89969.0,89942.0,5e-08]
[1765985389013,0.0111212,89947.0,89942.0,5e-08]
[1765985389314,0.3608,89943.0,89937.0,1e-08]
[1765985389699,0.3608,89943.0,89938.0,0.03013795]
[1765985389908,0.3608,89943.0,89939.0,5e-08]
[1765985389909,0.0111218,89942.0,89939.0,5e-08]
[1765985390106,8.764e-05,89941.0,89937.0,1e-08]
[1765985390508,0.011122,89940.0,89937.0,1e-08]
[1765985391005,8.764e-05,89941.0,89937.0,1e-08]
[1765985391205,0.01120954,89941.0,89937.0,1e-08]
[1765985391506,0.0111223,89938.0,89937.0,1e-08]
[1765985393211,1.1991423,89938.0,89937.0,1e-08]
[1765985393408,0.0111241,89924.0,89917.0,1e-08]
[1765985393616,0.3608,89918.0,89917.0,1e-08]
[1765985393924,0.27074533,89918.0,89910.0,0.2228211]
[1765985394414,0.00016676,89923.0,89917.0,0.3608]
[1765985394612,0.3608,89928.0,89917.0,0.3608]
[1765985394813,0.0111225,89937.0,89918.0,0.2339458]
[1765985395010,0.0111228,89935.0,89925.0,0.3608]
[1765985395216,0.3719219,89941.0,89925.0,0.3608]
[1765985395513,0.3608,89941.0,89930.0,0.2228211]
[1765985395703,0.69928,89958.0,89930.0,0.2228211]
[1765985395704,0.3719196,89961.0,89943.0,0.56172]
[1765985395904,0.3608,89971.0,89950.0,0.2228211]
[1765985396107,0.3608,89971.0,89956.0,0.3608]
[1765985396521,0.3608,89971.0,89960.0,0.2228211]
[1765985396705,0.00016671,89974.0,89964.0,0.3608]
[1765985397509,0.00016671,89974.0,89965.0,0.0111189]
[1765985397712,1e-08,89974.0,89972.0,0.3608]
[1765985399710,1e-08,89974.0,89973.0,1.50217]
[1765985399918,1e-08,89974.0,89973.0,0.3608]
[1765985400113,1e-08,89974.0,89964.0,0.2228211]
[1765985400316,0.3608,89965.0,89960.0,0.2228211]
[1765985400509,0.00100001,89974.0,89964.0,0.3608]
[1765985400707,1e-08,89974.0,89972.0,0.3608]
[1765985400911,0.55941346,90000.0,89972.0,0.3608]
[1765985400912,0.0111143,90003.0,89972.0,0.3608]
[1765985401214,0.02788362,90022.0,89969.0,0.0111184]
[1765985401428,0.0111144,90002.0,89984.0,0.3608]
[1765985401618,0.0111126,90017.0,89970.0,0.6441811]
[1765985401619,0.0111157,89992.0,89970.0,0.6441811]
[1765985401821,0.32664,90000.0,89980.0,0.2228211]
[1765985402114,0.0111175,89977.0,89972.0,3e-08]
[1765985402423,0.32664,89970.0,89928.0,0.07563646]
[1765985402716,0.01112,89957.0,89940.0,0.2228211]
[1765985402909,0.0111208,89950.0,89940.0,0.2228211]
[1765985403107,0.0111203,89954.0,89935.0,0.0111226]
[1765985403310,0.32664,89970.0,89940.0,0.2228211]
[1765985403607,0.0111193,89962.0,89940.0,0.011122]
[1765985403921,0.32664,89970.0,89940.0,0.2228211]
[1765985403922,0.35861,89955.0,89940.0,0.2228211]
[1765985404221,0.0111199,89958.0,89940.0,0.2228211]
[1765985404520,0.0111186,89969.0,89951.0,0.3608]
[1765985404718,0.0111196,89960.0,89951.0,0.3608]
[1765985405021,0.5494611,89970.0,89951.0,0.3608]
[1765985405316,0.0111184,89969.0,89961.0,0.3608]
[1765985405505,0.0111192,89963.0,89956.0,0.00016676]
[1765985405711,0.3608,89964.0,89956.0,0.00016676]
[1765985405905,0.3608,89972.0,89956.0,0.00016676]
[1765985405906,0.3608,89972.0,89965.0,0.0111189]
[1765985406112,0.0111152,89996.0,89975.0,0.0111176]
[1765985406318,0.32664,90000.0,89985.0,0.3608]
[1765985406522,0.0111148,89999.0,89977.0,0.00016676]
[1765985406819,0.0111164,89986.0,89977.0,0.00016676]
[1765985407019,0.32664,90000.0,89977.0,0.00016676]
[1765985407205,0.5494611,90000.0,89987.0,0.3608]
[1765985407410,0.0111161,89988.0,89977.0,0.00016676]
[1765985407610,0.3608,89993.0,89977.0,0.00016676]
[1765985407816,0.3608,89993.0,89982.0,0.3608]
[1765985408013,0.3608,89993.0,89980.0,0.2228211]
[1765985408512,0.32664,90000.0,89992.0,0.3608]
[1765985408713,0.3608,90021.0,89999.0,0.3608]
[1765985408927,0.3608,90013.0,90000.0,0.2228211]
[1765985409220,0.3608,90005.0,90000.0,0.2228211]
[1765985409519,0.3608,90024.0,90003.0,0.3608]
[1765985409921,0.3608,90032.0,90012.0,0.3608]
[1765985410116,0.3608,90032.0,90013.0,0.3608]
[1765985410312,0.0111108,90031.0,90020.0,0.2228211]
[1765985410617,0.3608,90021.0,90016.0,6e-08]
[1765985410812,0.0111123,90019.0,90016.0,6e-08]
[1765985411008,0.0111123,90019.0,89990.0,0.2228211]
[1765985411009,0.0111138,90007.0,89990.0,0.2228211]
[1765985411217,0.3608,90013.0,89990.0,0.2228211]
[1765985411417,0.0111139,90006.0,89990.0,0.2228211]
[1765985411719,0.35817,90016.0,90005.0,0.3608]
[1765985411921,0.0111131,90013.0,90005.0,0.3608]
[1765985412217,0.00016634,90020.0,90005.0,0.3719139]
[1765985412409,0.00016634,90020.0,90015.0,0.3608]
[1765985412609,0.00016634,90020.0,90019.0,0.3608]
[1765985412813,4e-08,90020.0,90019.0,0.3608]
[1765985413220,0.0111143,90003.0,90001.0,6e-08]
[1765985413422,1.14669,90002.0,90001.0,6e-08]
[1765985413716,1.86829,90002.0,90001.0,6e-08]
[1765985413922,0.34937,89998.0,89960.0,0.3401011]
[1765985414116,0.3608,89977.0,89961.0,0.02844479]
[1765985414311,0.34937,89981.0,89964.0,0.0111189]
[1765985414515,0.3608,89976.0,89970.0,0.2228211]
[1765985414918,0.3608,89974.0,89964.0,0.00016666]
[1765985415624,0.3608,89966.0,89964.0,0.00016666]
[1765985415826,0.3608,89974.0,89964.0,0.00016666]
[1765985416120,0.3608,89966.0,89964.0,0.00016666]
[1765985417017,0.3608,89966.0,89964.0,6e-08]
[1765985417218,0.3608,89966.0,89960.0,0.11728]
[1765985417517,0.71017,90016.0,89986.0,0.0111163]
[1765985417710,0.365415,89998.0,89981.0,0.3608]
[1765985417911,0.3543,89998.0,89990.0,0.3608]
[1765985418520,0.3608,89991.0,89985.0,0.00016666]
[1765985419020,0.3608,89991.0,89985.0,6e-08]
[1765985420110,0.3543,89998.0,89990.0,0.3608]
[1765985420315,0.71017,90016.0,89994.0,0.0111153]
[1765985420521,0.03941096,90015.0,89993.0,0.0111154]
[1765985420723,0.0111132,90012.0,89999.0,0.3608]
[1765985420915,0.2228211,90010.0,89999.0,0.3608]
[1765985421110,0.3608,90000.0,89985.0,6e-08]
[1765985421511,0.3608,89992.0,89985.0,6e-08]
[1765985421723,0.29492,89992.0,89985.0,6e-08]
[1765985422826,0.29592,89992.0,89985.0,6e-08]
[1765985423025,0.3543,89998.0,89986.0,0.0111163]
[1765985423225,0.34937,90016.0,89992.0,0.0111156]
[1765985423428,0.3608,90031.0,90010.0,0.3608]
[1765985423725,0.3608,90031.0,90018.0,0.3608]
[1765985424127,0.3608,90031.0,90010.0,0.3608]
[1765985424323,0.02778116,90034.0,90019.0,0.3608]
[1765985424523,0.05974569,90037.0,90019.0,0.3608]
[1765985424724,0.05974569,90036.0,90019.0,0.3719122]
[1765985425019,0.3608,90031.0,90019.0,0.3608]
[1765985425730,0.3608,90031.0,90023.0,0.0111117]
[1765985426030,0.3608,90031.0,90019.0,0.3719122]
[1765985426214,0.3608,90031.0,90021.0,0.0111119]
[1765985426421,0.3608,90031.0,90020.0,0.0111121]
[1765985426620,0.3608,90031.0,90019.0,0.3608]
[1765985426823,0.3543,90032.0,90016.0,0.3608]
[1765985427329,0.3608,90025.0,90016.0,0.3608]
[1765985427533,0.3719116,90025.0,90011.0,0.36096666]
[1765985427828,0.3608,90025.0,90011.0,0.36096666]
[1765985428723,0.0111121,90021.0,90011.0,0.36096666]
[1765985428923,0.3543,90016.0,89992.0,0.3719155]
[1765985429130,0.3608,90007.0,89992.0,0.3608]
[1765985429830,0.0111139,90006.0,89992.0,0.3608]
[1765985430228,0.3608,89999.0,89990.0,0.00016666]
[1765985430429,0.3608,89991.0,89981.0,0.3719169]
[1765985430832,0.3543,90000.0,89992.0,0.0111155]
[1765985431133,0.3543,90000.0,89981.0,0.3608]
[1765985431339,0.3608,89993.0,89981.0,0.3608]
[1765985431935,0.3719145,90001.0,89982.0,0.0111168]
[1765985432326,0.0111148,89999.0,89982.0,0.0111168]
[1765985432528,0.3608,90001.0,89981.0,0.3608]
[1765985432529,0.0111151,89997.0,89981.0,0.3608]
[1765985432736,0.00016666,90008.0,89991.0,0.3608]
[1765985433238,0.00016666,90008.0,90000.0,0.3608]
[1765985433534,0.00016666,90008.0,89981.0,0.0111169]
[1765985433535,0.3654087,90048.0,90030.0,0.0111108]
[1765985433735,0.3543,90048.0,90038.0,0.3608]
[1765985434235,0.011109,90046.0,90038.0,0.3608]
[1765985434541,0.3608,90041.0,90033.0,0.00016666]
[1765985435433,0.3608,90034.0,90033.0,6e-08]
[1765985435639,1.11205,90008.0,89996.0,0.3608]
[1765985435834,0.0111148,89999.0,89982.0,0.0111168]
[1765985436136,0.3608,89992.0,89981.0,0.0111169]
[1765985436337,0.3608,90031.0,90009.0,0.0111134]
[1765985436540,0.3608,90024.0,90000.0,0.3608]
[1765985436728,0.3608,90024.0,89989.0,0.3719159]
[1765985436729,1.11205,90012.0,90002.0,0.3608]
[1765985436925,0.7151,90015.0,90005.0,0.0111139]
[1765985437129,0.00016666,90029.0,90015.0,0.0111127]
[1765985437340,6e-08,90029.0,90022.0,0.0111118]
[1765985437536,6e-08,90029.0,90019.0,0.5836211]
[1765985437726,6e-08,90029.0,90020.0,0.0111121]
[1765985437931,0.3608,90037.0,90019.0,0.5836211]
[1765985438343,0.38210461,90048.0,90032.0,0.3608]
[1765985438642,0.3608,90042.0,90035.0,2e-07]
[1765985440035,0.3608,90040.0,90010.0,0.2228211]
[1765985440236,0.3608,90030.0,90016.0,0.3608]
[1765985440437,0.3608,90030.0,90010.0,0.2228211]
[1765985440627,0.0111111,90029.0,90015.0,0.3608]
[1765985441147,0.3608,90045.0,90015.0,0.3608]
[1765985441148,0.0022208,90058.0,90032.0,0.34899]
[1765985441445,6e-08,90054.0,90051.0,0.3608]
[1765985442645,1.8e-06,90053.0,90051.0,0.3608]
[1765985442840,8.6e-07,90058.0,90051.0,0.3608]
[1765985443341,8.6e-07,90058.0,90052.0,0.0111082]
[1765985443640,8.6e-07,90058.0,90051.0,0.3608]
[1765985443940,0.003,90053.0,90051.0,0.3608]
[1765985444147,0.01110836,90058.0,90051.0,0.3608]
[1765985444343,8.6e-07,90058.0,90045.0,0.3608]
[1765985444533,8.6e-07,90058.0,90041.0,0.3608]
[1765985444844,8.6e-07,90058.0,90042.0,0.0111094]
[1765985445038,0.3608,90054.0,90041.0,0.3608]
[1765985445239,8.6e-07,90058.0,90049.0,0.3608]
[1765985445446,6e-08,90058.0,90049.0,0.70979]
[1765985445941,0.05974569,90070.0,90057.0,0.92439]
[1765985446133,0.28256679,90070.0,90057.0,0.3608]
[1765985446333,0.0111064,90067.0,90057.0,0.3608]
[1765985446533,0.0111064,90067.0,90049.0,0.3719086]
[1765985446534,0.42054569,90067.0,90049.0,0.3608]
[1765985446738,0.3608,90059.0,90050.0,0.0111083]
[1765985446938,0.3608,90059.0,90049.0,0.3608]
[1765985447332,0.002,90058.0,90048.0,0.34899]
[1765985447732,0.002,90058.0,90053.0,0.3608]
[1765985448141,0.00016642,90064.0,90053.0,0.3608]
[1765985448547,0.00016642,90064.0,90055.0,0.0111078]
[1765985448744,0.00016642,90064.0,90054.0,0.2228211]
[1765985448944,0.002,90059.0,90054.0,0.2228211]
[1765985449146,0.002,90059.0,90053.0,0.3608]
[1765985449349,0.00016642,90064.0,90053.0,0.3608]
[1765985449647,0.00216642,90064.0,90053.0,0.3608]
[1765985449841,0.0111069,90063.0,90053.0,0.3608]
[1765985450042,0.001,90059.0,90053.0,0.3608]
[1765985450440,0.00016642,90064.0,90054.0,0.011108]
[1765985450642,0.00016642,90064.0,90053.0,0.3608]
[1765985450643,0.00016642,90064.0,90061.0,0.3608]
[1765985451942,0.00116642,90064.0,90061.0,0.3608]
[1765985452341,0.00016642,90064.0,90061.0,0.3608]
[1765985452543,2e-08,90064.0,90061.0,0.3608]
[1765985452744,1e-08,90067.0,90064.0,0.0111067]
[1765985452951,0.07982965,90077.0,90061.0,0.3608]
[1765985453254,0.3608,90068.0,90060.0,0.34899]
[1765985455042,0.3608,90068.0,90048.0,0.34899]
[1765985455248,0.0111064,90067.0,90048.0,0.34899]
[1765985455453,0.3608,90060.0,90052.0,0.0111082]
[1765985455749,0.3608,90060.0,90048.0,0.34899]
[1765985455952,0.3608,90060.0,90054.0,0.0111078]
[1765985456255,0.3608,90060.0,90055.0,0.0111078]
[1765985456451,0.07982965,90075.0,90060.0,0.34899]
[1765985456646,0.0111055,90074.0,90060.0,0.34899]
[1765985456955,0.3608,90079.0,90060.0,0.34899]
[1765985456956,0.0111062,90069.0,90060.0,0.34899]
[1765985457839,0.3608,90071.0,90060.0,0.34899]
[1765985458040,0.3608,90061.0,90048.0,0.34899]
[1765985458259,0.3608,90049.0,90020.0,0.3608]
[1765985458553,0.3608,90033.0,90017.0,0.3608]
[1765985459140,0.3608,90033.0,90025.0,0.0111114]
[1765985459341,0.00016657,90038.0,90025.0,0.7216]
[1765985459648,0.00016657,90038.0,90035.0,0.3608]
[1765985460448,0.3719102,90036.0,90020.0,0.00016657]
[1765985460751,0.3608,90049.0,90035.0,0.3608]
[1765985460947,0.34956,90058.0,90048.0,0.34899]
[1765985461249,0.34956,90058.0,90022.0,0.3719119]
[1765985461250,0.3608,90049.0,90022.0,0.3719119]
[1765985461461,0.3608,90049.0,90022.0,0.3608]
[1765985461462,0.3608,90040.0,90022.0,0.3608]
[1765985461652,0.3608,90030.0,90017.0,0.0111125]
[1765985461845,0.0111114,90027.0,90019.0,0.3608]
[1765985462046,0.371911,90030.0,90019.0,0.3608]
[1765985462245,0.3608,90020.0,90014.0,0.00016657]
[1765985462751,0.37118002,90020.0,90014.0,7e-08]
[1765985462946,0.0111127,90016.0,90014.0,7e-08]
[1765985463147,0.3608,90018.0,90014.0,7e-08]
[1765985463348,0.0001665,90026.0,90020.0,0.0111121]
[1765985463551,0.0111098,90040.0,90025.0,0.3608]
[1765985463944,0.40728522,90040.0,90025.0,0.3719115]
[1765985464252,0.0111099,90039.0,90025.0,0.3608]
[1765985464455,0.3608,90026.0,90014.0,7e-08]
[1765985464644,0.3608,90017.0,90014.0,7e-08]
[1765985465042,0.98324522,90030.0,90015.0,0.70979]
[1765985465450,0.0111119,90022.0,90015.0,0.70979]
[1765985465648,0.0111115,90025.0,90015.0,0.3608]
[1765985465857,0.3608,90027.0,90015.0,0.70979]
[1765985466454,0.0111114,90026.0,90015.0,0.70979]
[1765985466757,0.3608,90027.0,90014.0,7e-08]
[1765985466945,0.0111127,90016.0,90014.0,7e-08]
[1765985467148,0.3608,90017.0,90014.0,7e-08]
[1765985467446,0.0111155,89994.0,89988.0,0.90096]
[1765985467646,0.3608,89993.0,89980.0,0.04459847]
[1765985468048,0.3608,90018.0,89992.0,0.3608]
[1765985468248,0.3608,90018.0,90001.0,0.3608]
[1765985468443,0.59732,90023.0,90009.0,0.3608]
[1765985468652,0.0868002,90026.0,90009.0,0.3608]
[1765985468653,0.0888002,90026.0,90015.0,0.33426]
[1765985468852,0.3608,90023.0,90007.0,0.0111137]
[1765985469054,0.3608,90014.0,90003.0,0.0111142]
[1765985469356,0.3608,90014.0,90004.0,0.3608]
[1765985469759,0.3608,90014.0,90000.0,0.34915666]
[1765985470160,0.0111131,90013.0,90000.0,0.34915666]
[1765985470457,0.3608,90005.0,90000.0,0.34915666]
[1765985471759,0.3628,90014.0,90000.0,0.34915666]
[1765985472060,1.38964,90037.0,90030.0,0.34968]
[1765985472254,0.78762965,90057.0,90036.0,0.3608]
[1765985472459,0.3608,90051.0,90036.0,0.3608]
[1765985472659,0.40728522,90050.0,90036.0,0.3608]
[1765985472848,0.3608,90037.0,90030.0,0.34968]
[1765985473557,0.3608,90037.0,90024.0,0.00016666]
[1765985473759,0.3608,90037.0,90026.0,0.0111113]
[1765985474059,0.09022081,90041.0,90032.0,0.3608]
[1765985474249,0.3608,90033.0,90024.0,0.36096666]
[1765985474450,0.3608,90033.0,90024.0,0.00016666]
[1765985474650,0.3608,90025.0,90024.0,0.00016666]
[1765985475748,0.002,90025.0,90024.0,0.00016666]
[1765985475951,0.45178018,90042.0,90024.0,0.00016666]
[1765985475952,0.05967846,90041.0,90024.0,0.00016666]
[1765985476147,0.0111101,90037.0,90024.0,0.00016666]
[1765985476350,0.05967846,90041.0,90024.0,0.00016666]
[1765985476351,0.002,90025.0,90024.0,6e-08]
[1765985476658,0.002,90025.0,90008.0,0.0111135]